bitfinex/quotes_BTCUSD_20250331
["timestamp","ask_amount","ask_price","bid_price","bid_amount"]
[1743432832235,0.0003378,83602.0,83601.0,0.98657671]
[1743432832676,0.0001754,83617.0,83616.0,0.251147]
[1743432832871,0.0001754,83617.0,83616.0,0.36179186]
[1743432833090,0.0001754,83617.0,83616.0,0.12260386]
[1743432833491,0.0001754,83617.0,83616.0,0.12430847]
[1743432833712,0.0001754,83617.0,83616.0,0.12430842]
[1743432833924,0.00046336,83617.0,83616.0,0.69886307]
[1743432834127,0.0003376,83647.0,83631.0,0.56564285]
[1743432834277,0.0003376,83647.0,83631.0,0.88588671]
[1743432834869,0.0003376,83647.0,83631.0,2.0971495]
[1743432835194,0.0003376,83647.0,83640.0,0.01454085]
[1743432835392,0.0003376,83647.0,83641.0,0.12260386]
[1743432835622,0.0003376,83647.0,83641.0,0.36171886]
[1743432835847,0.0003376,83647.0,83646.0,0.011955]
[1743432836151,0.0003376,83647.0,83646.0,0.38990431]
[1743432836433,0.0003376,83647.0,83646.0,0.13714471]
[1743432836682,0.0003376,83647.0,83632.0,0.3]
[1743432836944,0.0003376,83647.0,83642.0,0.19704]
[1743432837189,0.0003376,83647.0,83642.0,0.31964386]
[1743432837943,0.0003376,83647.0,83642.0,0.19704]
[1743432839377,0.0003376,83647.0,83632.0,0.00894541]
[1743432839623,0.0003376,83647.0,83633.0,0.12260386]
[1743432840134,0.0003376,83647.0,83636.0,0.239129]
[1743432840349,0.0003376,83647.0,83636.0,0.251085]
[1743432840616,0.0003376,83647.0,83633.0,0.12260386]
[1743432840828,0.0003376,83647.0,83632.0,0.00013922]
[1743432841057,0.66409274,83646.0,83632.0,0.00013922]
[1743432841254,0.66110386,83646.0,83632.0,0.00013922]
[1743432841469,0.5385,83646.0,83632.0,0.00013922]
[1743432841858,0.4134,83646.0,83640.0,0.011956]
[1743432842063,0.0003376,83647.0,83646.0,0.011955]
[1743432842268,0.0003376,83647.0,83646.0,0.13455886]
[1743432842920,0.0003376,83647.0,83646.0,0.48146311]
[1743432843725,0.0003376,83647.0,83646.0,0.44909971]
[1743432843932,0.0003376,83647.0,83646.0,0.48173088]
[1743432844294,0.0001687,83656.0,83654.0,0.56557485]
[1743432844530,0.0001687,83656.0,83654.0,0.68817871]
[1743432844816,0.0003376,83665.0,83664.0,0.551003]
[1743432845033,0.002,83679.0,83672.0,0.550979]
[1743432845243,0.01871581,83717.0,83694.0,0.238965]
[1743432845455,0.01871581,83717.0,83693.0,0.011948]
[1743432845456,0.01871581,83717.0,83697.0,0.01454085]
[1743432845661,0.250857,83713.0,83691.0,0.19644]
[1743432845800,0.0338543,83719.0,83692.0,0.12260386]
[1743432845801,0.03065577,83716.0,83692.0,0.12260386]
[1743432846199,0.23892,83710.0,83692.0,0.12260386]
[1743432846444,0.23892,83710.0,83690.0,0.00013922]
[1743432846445,0.238928,83708.0,83690.0,0.00013922]
[1743432846948,0.0776688,83704.0,83690.0,0.12274308]
[1743432847183,0.0101687,83700.0,83699.0,0.011947]
[1743432847397,0.0101687,83700.0,83699.0,0.12260386]
[1743432848073,0.0101687,83700.0,83699.0,0.15079027]
[1743432848309,0.0001687,83731.0,83730.0,0.250806]
[1743432848541,0.0001687,83731.0,83730.0,0.58475071]
[1743432848830,0.0001687,83731.0,83730.0,0.58415071]
[1743432849027,0.0001687,83731.0,83730.0,0.88415071]
[1743432849443,0.049,83772.0,83730.0,0.88415071]
[1743432849767,0.049,83772.0,83738.0,0.31454085]
[1743432849768,0.00246422,83739.0,83738.0,0.31454085]
[1743432849878,0.00246422,83739.0,83738.0,0.42260386]
[1743432850281,0.00246422,83739.0,83713.0,1.21126279]
[1743432850523,0.00246422,83739.0,83734.0,0.3]
[1743432850723,0.6,83753.0,83752.0,0.01454085]
[1743432850951,0.6,83753.0,83752.0,0.58450393]
[1743432851979,0.6,83753.0,83752.0,0.89342363]
[1743432852357,0.0789,83794.0,83768.0,0.550691]
[1743432852528,0.0789,83794.0,83768.0,0.63342471]
[1743432852737,0.0789,83794.0,83768.0,0.42260386]
[1743432852963,0.00298368,83793.0,83768.0,0.31884386]
[1743432853176,0.0789,83794.0,83768.0,0.31884386]
[1743432853383,0.00170694,83769.0,83768.0,0.31884386]
[1743432853584,0.00170694,83769.0,83768.0,0.33078086]
[1743432853835,0.00170694,83769.0,83768.0,0.31884386]
[1743432854663,0.00170694,83769.0,83768.0,0.33338471]
[1743432854798,0.00170694,83769.0,83768.0,0.34532171]
[1743432855200,0.00170694,83769.0,83768.0,0.64532171]
[1743432857419,0.00170694,83769.0,83768.0,0.44908171]
[1743432857629,0.00170694,83769.0,83768.0,0.64500171]
[1743432858261,0.00170694,83769.0,83768.0,0.44908171]
[1743432858463,0.00170694,83769.0,83768.0,0.64500171]
[1743432859003,0.32226332,83811.0,83780.0,0.011936]
[1743432859139,0.32226332,83810.0,83785.0,0.238704]
[1743432859355,0.32226332,83810.0,83786.0,0.12260386]
[1743432859558,0.35465895,83810.0,83787.0,0.12429635]
[1743432859918,0.011932,83808.0,83781.0,0.19592]
[1743432860123,0.238653,83804.0,83782.0,0.12429669]
[1743432860339,0.011933,83800.0,83781.0,0.00013922]
[1743432860628,0.33419632,83799.0,83781.0,0.00013922]
[1743432860833,0.57286532,83799.0,83781.0,0.00013922]
[1743432861126,0.238671,83798.0,83781.0,0.00013922]
[1743432861376,0.3,83797.0,83781.0,0.00013922]
[1743432862116,0.238674,83796.0,83781.0,0.00013922]
[1743432862339,0.32226332,83799.0,83781.0,0.00013922]
[1743432862513,0.3,83798.0,83781.0,0.00013922]
[1743432863498,0.18721669,83797.0,83781.0,0.00013922]
[1743432863704,0.011934,83794.0,83781.0,0.00013922]
[1743432863926,0.23869,83791.0,83781.0,0.00013922]
[1743432864129,0.238702,83787.0,83781.0,0.00013922]
[1743432864333,0.00298403,83786.0,83781.0,0.00013922]
[1743432864540,0.0481,83787.0,83781.0,0.00013922]
[1743432864745,0.32226332,83790.0,83785.0,0.250638]
[1743432864953,0.3,83802.0,83786.0,0.12260386]
[1743432865160,0.32226332,83802.0,83786.0,0.12260386]
[1743432865850,0.32226332,83802.0,83786.0,0.36130586]
[1743432866231,0.32226332,83802.0,83786.0,0.12260386]
[1743432866444,0.32226332,83802.0,83781.0,0.00013922]
[1743432866445,0.00298322,83801.0,83781.0,0.00013922]
[1743432866650,0.32226332,83802.0,83781.0,0.00013922]
[1743432867276,0.32226332,83802.0,83785.0,0.238703]
[1743432867483,0.3,83799.0,83781.0,0.00013922]
[1743432867701,0.3,83801.0,83781.0,0.12274308]
[1743432867934,0.42260386,83801.0,83781.0,0.00013922]
[1743432868127,0.011933,83800.0,83781.0,0.00013922]
[1743432868323,0.011934,83791.0,83781.0,0.00013922]
[1743432868523,0.3,83792.0,83781.0,0.00013922]
[1743432868738,0.3,83790.0,83781.0,0.00013922]
[1743432869606,0.00298373,83789.0,83781.0,0.00013922]
[1743432869962,0.3,83792.0,83781.0,0.00013922]
[1743432870163,0.238707,83785.0,83781.0,0.00013922]
[1743432870337,0.25362823,83784.0,83781.0,0.00013922]
[1743432870540,0.250649,83782.0,83781.0,0.00013922]
[1743432870750,0.238703,83786.0,83781.0,0.00013922]
[1743432871039,0.0496,83787.0,83781.0,0.00013922]
[1743432871339,0.3,83786.0,83781.0,0.00013922]
[1743432871497,0.538703,83786.0,83781.0,0.00013922]
[1743432871697,0.3,83786.0,83781.0,0.00013922]
[1743432871931,0.3,83784.0,83781.0,0.00013922]
[1743432872483,0.32226332,83783.0,83781.0,0.00013922]
[1743432877733,0.99850016,83782.0,83781.0,0.00013922]
[1743432877961,0.99551618,83782.0,83781.0,0.00013922]
[1743432878422,1.12091618,83782.0,83781.0,0.00013922]
[1743432879381,0.74766332,83782.0,83781.0,0.00013922]
[1743432879555,0.67156332,83782.0,83781.0,0.00013922]
[1743432880098,0.32226332,83782.0,83781.0,0.00013922]
[1743432880540,0.32226332,83782.0,83781.0,0.00047522]
[1743432880755,0.62226332,83782.0,83781.0,0.00047522]
[1743432882669,0.99551618,83782.0,83781.0,0.00047522]
[1743432883403,1.00435008,83782.0,83781.0,0.00047522]
[1743432883604,1.08675008,83782.0,83781.0,0.00047522]
[1743432884028,0.8547985,83782.0,83781.0,0.00047522]
[1743432884256,1.2893125,83782.0,83781.0,0.00047522]
[1743432884450,1.3012475,83782.0,83781.0,0.00047522]
[1743432884653,1.31451954,83782.0,83781.0,0.00047522]
[1743432884858,1.3012475,83782.0,83781.0,0.00047522]
[1743432887255,0.011937,83769.0,83768.0,0.0003362]
[1743432887457,0.99806499,83769.0,83768.0,0.0004755]
[1743432887655,0.74439196,83769.0,83768.0,0.0004755]
[1743432888894,0.99507996,83769.0,83768.0,0.0004755]
[1743432889703,0.74439196,83769.0,83768.0,0.0004755]
[1743432889954,0.94023196,83769.0,83768.0,0.0004755]
[1743432890105,0.3217881,83769.0,83768.0,0.0004755]
[1743432891196,0.3217881,83769.0,83768.0,0.2392295]
[1743432891415,0.3217881,83769.0,83768.0,0.0004755]
[1743432900533,0.3217881,83769.0,83768.0,0.2392295]
[1743432900733,0.3217881,83769.0,83768.0,0.2511665]
[1743432900934,0.3217881,83769.0,83768.0,0.0004755]
[1743432902066,0.04734663,83781.0,83768.0,0.0004755]
[1743432902231,0.29691774,83780.0,83768.0,0.0004755]
[1743432902426,0.250664,83778.0,83768.0,0.0004755]
[1743432902630,0.00298442,83777.0,83768.0,0.0004755]
[1743432902870,0.24171542,83777.0,83768.0,0.0004755]
[1743432903031,0.238732,83776.0,83768.0,0.0004755]
[1743432903230,0.00298455,83775.0,83768.0,0.0004755]
[1743432903693,0.250688,83769.0,83768.0,0.0004755]
[1743432903905,0.42063849,83769.0,83768.0,0.0004755]
[1743432904263,0.76593849,83769.0,83768.0,0.0004755]
[1743432904887,0.52643278,83769.0,83768.0,0.0004755]
[1743432905088,0.01118229,83769.0,83768.0,0.0004755]
[1743432905495,0.05852892,83769.0,83768.0,0.0004755]
[1743432906490,0.06852892,83769.0,83768.0,0.0004755]
[1743432906877,0.06869702,83769.0,83768.0,0.0004755]
[1743432908583,0.05751473,83769.0,83768.0,0.0004755]
[1743432911557,0.06049952,83769.0,83768.0,0.0004755]
[1743432911969,0.05751473,83769.0,83768.0,0.0004755]
[1743432912756,0.06870213,83769.0,83768.0,0.0004755]
[1743432912933,0.0213555,83769.0,83768.0,0.0004755]
[1743432914433,0.0101681,83769.0,83768.0,0.0004755]
[1743432917129,0.01315288,83769.0,83768.0,0.0004755]
[1743432917340,0.0101681,83769.0,83768.0,0.0004755]
[1743432917756,0.2608561,83769.0,83768.0,0.0004755]
[1743432918069,0.38345996,83769.0,83768.0,0.0004755]
[1743432918269,0.68345996,83769.0,83768.0,0.0004755]
[1743432918732,0.69465062,83769.0,83768.0,0.0004755]
[1743432918884,0.74199725,83769.0,83768.0,0.0004755]
[1743432919291,0.01194,83750.0,83723.0,0.10424186]
[1743432919500,0.29393354,83744.0,83733.0,0.0001394]
[1743432919694,0.00298569,83743.0,83733.0,0.0001394]
[1743432919907,0.04687113,83743.0,83733.0,0.0001394]
[1743432920109,0.19576,83742.0,83733.0,0.0001394]
[1743432920546,0.011942,83734.0,83733.0,0.0001394]
[1743432920709,0.01492805,83734.0,83733.0,0.0001394]
[1743432920928,0.38016304,83734.0,83733.0,0.0001394]
[1743432921128,0.250824,83724.0,83723.0,0.10424186]
[1743432921311,0.72029899,83724.0,83723.0,0.10470608]
[1743432921709,0.72029899,83724.0,83723.0,0.00046422]
[1743432922329,0.550829,83722.0,83721.0,0.00046422]
[1743432922527,0.250871,83708.0,83707.0,0.10424186]
[1743432922735,0.56923486,83708.0,83707.0,0.10424186]
[1743432922914,0.550901,83698.0,83697.0,0.000337]
[1743432923116,0.550919,83692.0,83691.0,0.002]
[1743432923329,0.99492286,83692.0,83691.0,0.002]
[1743432923747,0.54820386,83692.0,83691.0,0.002]
[1743432923946,0.75595186,83692.0,83691.0,0.002]
[1743432924261,0.75595186,83692.0,83691.0,0.00213951]
[1743432924464,0.80282299,83692.0,83691.0,0.00213951]
[1743432924670,0.84369126,83692.0,83691.0,0.00213951]
[1743432926917,0.56739126,83692.0,83691.0,0.00213951]
[1743432927121,0.2835794,83692.0,83691.0,0.00213951]
[1743432927330,0.0877394,83692.0,83691.0,0.00213951]
[1743432927689,0.3277104,83692.0,83691.0,0.00213951]
[1743432927892,0.75031426,83692.0,83691.0,0.00213951]
[1743432928140,0.76226226,83692.0,83691.0,0.00213951]
[1743432930378,0.51134326,83692.0,83691.0,0.00213951]
[1743432930603,0.4074562,83692.0,83691.0,0.00213951]
[1743432930923,0.3887394,83692.0,83691.0,0.00213951]
[1743432931743,0.52329126,83692.0,83691.0,0.00213951]
[1743432932150,0.3887394,83692.0,83691.0,0.00213951]
[1743432932357,0.0887394,83692.0,83691.0,0.00213951]
[1743432933534,0.04186827,83692.0,83691.0,0.00213951]
[1743432934371,0.04186827,83692.0,83691.0,0.12507977]
[1743432934372,0.001,83692.0,83691.0,0.12507977]
[1743432934587,0.001,83692.0,83691.0,0.69054262]
[1743432934800,0.04687113,83727.0,83717.0,0.011945]
[1743432935031,0.00883152,83730.0,83719.0,0.011944]
[1743432935239,0.00883152,83730.0,83720.0,0.1243014]
[1743432935445,0.04687113,83742.0,83720.0,0.12260386]
[1743432935672,0.238834,83740.0,83720.0,0.12260386]
[1743432935873,0.238834,83740.0,83708.0,0.01454085]
[1743432935874,0.29393354,83730.0,83708.0,0.01454085]
[1743432936071,0.04125776,83737.0,83710.0,0.01454085]
[1743432936324,0.10366886,83728.0,83711.0,0.12260386]
[1743432936671,0.00046448,83728.0,83711.0,0.12260386]
[1743432937474,0.00046448,83728.0,83687.0,0.025]
[1743432937475,0.011943,83727.0,83699.0,0.01454085]
[1743432937692,0.00298608,83726.0,83706.0,0.19588]
[1743432937891,0.011944,83724.0,83706.0,0.19588]
[1743432938095,0.29393354,83720.0,83706.0,0.19588]
[1743432938307,0.250824,83724.0,83697.0,0.01454085]
[1743432938629,0.238889,83721.0,83698.0,0.12260386]
[1743432938845,0.33750342,83724.0,83698.0,0.12260386]
[1743432938999,0.238887,83722.0,83698.0,0.12260386]
[1743432939200,0.238886,83722.0,83698.0,0.12260386]
[1743432939402,0.538889,83721.0,83698.0,0.12260386]
[1743432939608,0.38754054,83721.0,83698.0,0.36155686]
[1743432939807,0.3,83721.0,83698.0,0.12260386]
[1743432940431,0.04125776,83737.0,83719.0,0.011944]
[1743432940632,0.04125776,83737.0,83720.0,0.1243013]
[1743432940796,0.04125776,83737.0,83724.0,0.250822]
[1743432940989,0.04125776,83737.0,83722.0,0.250827]
[1743432941227,0.04125776,83737.0,83723.0,0.24057944]
[1743432941834,0.04125776,83737.0,83723.0,0.00169744]
[1743432942294,0.04125776,83737.0,83721.0,0.24058344]
[1743432942528,0.04125776,83737.0,83722.0,0.238885]
[1743432942662,0.04125776,83737.0,83721.0,0.24058444]
[1743432942858,0.04125776,83737.0,83724.0,0.238878]
[1743432943058,0.04125776,83737.0,83722.0,0.238883]
[1743432943263,0.04125776,83737.0,83720.0,0.12260386]
[1743432943677,0.04424345,83737.0,83710.0,0.011946]
[1743432943862,0.04125776,83737.0,83712.0,0.13454886]
[1743432944061,0.04125776,83737.0,83717.0,0.011945]
[1743432944346,0.04125776,83737.0,83724.0,0.011944]
[1743432944630,0.04125776,83737.0,83725.0,0.12260386]
[1743432944758,0.04125776,83737.0,83716.0,0.01454085]
[1743432944960,0.04125776,83737.0,83717.0,0.12260386]
[1743432946003,0.00298573,83736.0,83717.0,0.12260386]
[1743432946213,0.30298573,83736.0,83717.0,0.12260386]
[1743432946455,0.30298573,83736.0,83706.0,0.01454085]
[1743432946456,0.00146448,83728.0,83710.0,0.1958]
[1743432946663,0.00146448,83728.0,83711.0,0.12260386]
[1743432946869,0.34687113,83727.0,83702.0,0.23894]
[1743432947020,0.04687113,83726.0,83703.0,0.36324042]
[1743432947228,0.04687113,83726.0,83703.0,0.36154186]
[1743432947431,0.04687113,83726.0,83704.0,0.24063556]
[1743432947627,0.04687113,83726.0,83711.0,0.011945]
[1743432947835,0.04687113,83726.0,83712.0,0.0016982]
[1743432947988,0.04687113,83726.0,83712.0,0.2406112]
[1743432948186,0.01111023,83725.0,83712.0,0.2525562]
[1743432948395,0.01111023,83725.0,83709.0,0.238921]
[1743432948654,0.01111023,83725.0,83710.0,0.12430191]
[1743432949058,0.01111023,83725.0,83710.0,0.36321991]
[1743432949256,0.01111023,83725.0,83710.0,0.12260386]
[1743432949492,0.3,83719.0,83684.0,0.0003366]
[1743432949718,0.3,83710.0,83692.0,0.12260386]
[1743432949924,0.04687113,83709.0,83692.0,0.12260386]
[1743432950128,0.3,83710.0,83692.0,0.12260386]
[1743432950798,0.3,83711.0,83692.0,0.12260386]
[1743432951013,0.01111023,83709.0,83692.0,0.12260386]
[1743432951352,0.01111023,83709.0,83691.0,0.0023364]
[1743432951353,0.538934,83706.0,83691.0,0.0023364]
[1743432951516,0.3,83706.0,83691.0,0.0023364]
[1743432951936,0.238962,83696.0,83691.0,0.0023364]
[1743432952134,0.238962,83696.0,83684.0,0.0003366]
[1743432952135,0.011949,83688.0,83684.0,0.0003366]
[1743432952360,0.01195,83682.0,83656.0,0.1958]
[1743432952562,0.01195,83677.0,83649.0,0.000337]
[1743432952692,0.539011,83679.0,83649.0,0.000337]
[1743432952693,0.3,83679.0,83653.0,0.239081]
[1743432952897,0.3,83679.0,83654.0,0.011954]
[1743432953109,0.3,83679.0,83662.0,0.00170171]
[1743432953294,0.3,83675.0,83661.0,0.00213951]
[1743432953896,0.24201101,83674.0,83661.0,0.00213951]
[1743432954095,0.011951,83673.0,83661.0,0.00213951]
[1743432954387,0.04278893,83672.0,83661.0,0.00213951]
[1743432954537,0.3,83674.0,83661.0,0.00213951]
[1743432954749,0.01111023,83672.0,83661.0,0.00213951]
[1743432955411,0.01111023,83672.0,83662.0,0.00170204]
[1743432955609,0.01111023,83672.0,83662.0,0.00170176]
[1743432955809,0.01111023,83671.0,83663.0,0.239054]
[1743432956066,0.01111023,83671.0,83664.0,0.00170176]
[1743432956293,0.01111023,83671.0,83664.0,0.01365376]
[1743432956499,0.01111023,83671.0,83665.0,0.239046]
[1743432956698,0.01111023,83671.0,83667.0,0.011952]
[1743432956907,0.01111023,83671.0,83668.0,0.52260386]
[1743432957107,0.01111023,83671.0,83668.0,0.4]
[1743432957312,0.01111023,83670.0,83661.0,0.00213951]
[1743432957514,0.01111023,83670.0,83662.0,0.12260386]
[1743432958145,0.01111023,83670.0,83669.0,0.02649185]
[1743432958342,0.01111023,83670.0,83669.0,0.42729649]
[1743432958558,0.001,83671.0,83670.0,0.26552585]
[1743432958792,0.001,83671.0,83670.0,0.38812971]
[1743432959165,0.001,83671.0,83670.0,0.78812971]
[1743432959548,0.001,83671.0,83670.0,0.79312971]
[1743432959733,0.001,83671.0,83670.0,2.00387416]
[1743432960363,0.001,83671.0,83670.0,0.78812971]
[1743432960778,0.04687113,83707.0,83699.0,0.238951]
[1743432960980,0.04687113,83706.0,83700.0,0.12260386]
[1743432961196,0.08149654,83706.0,83705.0,0.25088]
[1743432961398,0.08149654,83706.0,83705.0,0.36153786]
[1743432961592,0.08149654,83706.0,83705.0,0.12260386]
[1743432961795,0.09028153,83706.0,83690.0,0.250923]
[1743432962066,0.09028153,83706.0,83693.0,0.02648885]
[1743432962067,0.09074572,83706.0,83693.0,0.02648885]
[1743432962204,0.09074572,83706.0,83696.0,0.01454085]
[1743432962405,0.09074572,83706.0,83697.0,0.12260386]
[1743432962992,0.01112898,83705.0,83690.0,0.238977]
[1743432963127,0.01112898,83705.0,83691.0,0.12430317]
[1743432963324,0.01112898,83705.0,83691.0,0.12260386]
[1743432964565,0.01112898,83705.0,83666.0,1.21074445]
[1743432964566,0.011947,83698.0,83670.0,0.011951]
[1743432964812,0.04687113,83697.0,83671.0,0.13625521]
[1743432965050,0.04687113,83697.0,83674.0,0.239022]
[1743432965199,0.28582813,83697.0,83675.0,0.12260386]
[1743432965376,0.32560987,83696.0,83675.0,0.12260386]
[1743432966005,0.10891196,83696.0,83675.0,0.12260386]
[1743432966220,0.02893771,83695.0,83675.0,0.12260386]
[1743432966437,0.04687113,83694.0,83677.0,0.01195]
[1743432966653,0.04687113,83694.0,83686.0,0.02648985]
[1743432966856,0.04687113,83694.0,83684.0,0.011949]
[1743432966857,0.04687113,83694.0,83687.0,0.12430388]
[1743432967153,0.04687113,83694.0,83692.0,0.23897]
[1743432967362,0.04687113,83694.0,83693.0,0.38976001]
[1743432967504,0.04387459,83706.0,83693.0,0.38976001]
[1743432967505,0.0350896,83706.0,83705.0,0.25088]
[1743432967704,0.0350896,83706.0,83705.0,0.58378471]
[1743432968510,0.0350896,83706.0,83705.0,0.33290471]
[1743432968717,0.0350896,83706.0,83705.0,0.31836386]
[1743432969327,0.08196073,83706.0,83695.0,0.01454085]
[1743432969551,0.08196073,83706.0,83696.0,0.12260386]
[1743432969752,0.10423434,83706.0,83696.0,0.12260386]
[1743432970541,0.10423434,83706.0,83682.0,0.01195]
[1743432970738,0.04687113,83705.0,83683.0,0.12260386]
[1743432971167,0.30807874,83705.0,83683.0,0.12260386]
[1743432971321,0.238937,83704.0,83683.0,0.12260386]
[1743432971525,0.238949,83700.0,83677.0,0.19576]
[1743432971724,0.04687113,83703.0,83680.0,0.0016999]
[1743432971926,0.01161803,83702.0,83680.0,0.12430376]
[1743432972130,0.02227361,83699.0,83680.0,0.12430376]
[1743432972544,0.02227361,83699.0,83691.0,0.011948]
[1743432972763,0.02227361,83699.0,83692.0,0.13714471]
[1743432972971,0.02227361,83699.0,83692.0,0.12260386]
[1743432973576,0.04687113,83703.0,83688.0,0.19576]
[1743432973790,0.04687113,83703.0,83688.0,0.12260386]
[1743432973991,0.05508406,83703.0,83688.0,0.12260386]
[1743432974230,0.04687113,83703.0,83682.0,0.238999]
[1743432974434,0.04687113,83703.0,83686.0,0.238986]
[1743432974639,0.04687113,83702.0,83687.0,0.2406849]
[1743432975171,0.04687113,83702.0,83687.0,0.0016999]
[1743432975369,0.04687113,83702.0,83686.0,0.12260386]
[1743432975569,0.04687113,83702.0,83687.0,0.00169991]
[1743432976319,0.04687113,83701.0,83673.0,0.011951]
[1743432976533,0.04687113,83701.0,83678.0,0.36331407]
[1743432976894,0.04687113,83701.0,83698.0,0.238952]
[1743432977069,0.04687113,83700.0,83685.0,0.011949]
[1743432977267,0.04687113,83700.0,83677.0,0.19572]
[1743432977268,0.04687113,83700.0,83687.0,0.238985]
[1743432977474,0.001,83703.0,83678.0,0.25355185]
[1743432977475,0.04687113,83699.0,83678.0,0.25355185]
[1743432977651,0.04687113,83699.0,83687.0,0.011949]
[1743432977849,0.04687113,83699.0,83688.0,0.00169993]
[1743432978075,0.04687113,83699.0,83689.0,0.12260386]
[1743432978276,0.04687113,83699.0,83679.0,0.01195]
[1743432978448,0.04687113,83699.0,83683.0,0.238996]
[1743432978651,0.04687113,83699.0,83684.0,0.12430367]
[1743432978856,0.02231498,83698.0,83684.0,0.12430367]
[1743432979122,0.02231498,83698.0,83668.0,0.244038]
[1743432979123,0.30814111,83698.0,83672.0,0.250979]
[1743432979324,0.1289,83697.0,83675.0,0.011951]
[1743432979524,0.1289,83697.0,83676.0,0.12260386]
[1743432979933,0.02231498,83696.0,83677.0,0.00170049]
[1743432980136,0.02231498,83696.0,83678.0,0.12260386]
[1743432980336,0.01116092,83695.0,83678.0,0.12260386]
[1743432980746,0.29393354,83690.0,83671.0,0.0003372]
[1743432980971,0.29393354,83690.0,83671.0,0.12294106]
[1743432981125,0.29393354,83690.0,83672.0,0.00170097]
[1743432981466,0.250919,83693.0,83672.0,0.00170097]
[1743432981467,0.01116092,83689.0,83672.0,0.00170097]
[1743432981626,0.04687113,83688.0,83672.0,0.00170097]
[1743432981828,0.05581069,83688.0,83672.0,0.00170097]
[1743432982211,0.03298416,83687.0,83672.0,0.00170097]
[1743432982416,0.26130198,83687.0,83671.0,0.12294106]
[1743432982617,0.04687113,83686.0,83671.0,0.12294106]
[1743432983272,0.05803205,83686.0,83671.0,0.12294106]
[1743432983486,0.05803205,83686.0,83673.0,0.011951]
[1743432983626,0.02231498,83685.0,83681.0,0.01195]
[1743432983830,0.02231498,83685.0,83680.0,0.01195]
[1743432983831,0.02231498,83685.0,83682.0,0.12430417]
[1743432984054,0.02231498,83685.0,83683.0,0.238996]
[1743432984288,0.02231498,83685.0,83684.0,0.4]
[1743432984493,0.02231498,83685.0,83671.0,0.0003372]
[1743432984698,0.04687113,83685.0,83672.0,0.12430453]
[1743432985089,0.04687113,83685.0,83673.0,0.639024]
[1743432985318,0.04687113,83684.0,83671.0,0.0003372]
[1743432985520,0.04687113,83684.0,83674.0,0.00170067]
[1743432985715,0.05804369,83684.0,83678.0,0.23901]
[1743432985918,0.0223452,83683.0,83679.0,0.12260386]
[1743432986119,0.0223452,83683.0,83682.0,0.25095]
[1743432986340,0.0223452,83683.0,83682.0,0.12260386]
[1743432986463,0.0223452,83683.0,83682.0,0.36160386]
[1743432986694,0.0223452,83683.0,83682.0,0.38809471]
[1743432986898,0.03351776,83683.0,83682.0,0.38809471]
[1743432987344,0.03351776,83683.0,83682.0,0.13714471]
[1743432987543,0.08038889,83683.0,83678.0,0.0003372]
[1743432987744,0.08038889,83683.0,83679.0,0.12260386]
[1743432987986,0.08038889,83683.0,83679.0,0.1243045]
[1743432988117,0.08038889,83683.0,83679.0,0.3633125]
[1743432988304,0.08038889,83683.0,83679.0,0.36161186]
[1743432988505,0.03351776,83682.0,83680.0,0.4]
[1743432988701,0.03351776,83682.0,83681.0,0.12260386]
[1743432990056,0.01117256,83682.0,83681.0,0.12260386]
[1743432990262,0.01117256,83682.0,83680.0,0.4]
[1743432990465,0.01117256,83682.0,83678.0,0.0003372]
[1743432991467,0.04687113,83683.0,83678.0,0.0003372]
[1743432991468,0.01117256,83681.0,83678.0,0.0003372]
[1743432992152,0.04687113,83680.0,83678.0,0.0003372]
[1743432992585,0.08041001,83680.0,83678.0,0.0003372]
[1743432993183,0.04687113,83679.0,83678.0,0.0003372]
[1743432993387,0.04687113,83679.0,83678.0,0.00047671]
[1743432993710,0.04687113,83679.0,83678.0,0.38858242]
[1743432993711,0.06923745,83679.0,83678.0,0.38858242]
[1743432993915,0.08041001,83679.0,83678.0,0.38858242]
[1743432994345,0.03353888,83679.0,83678.0,0.38858242]
[1743432994748,0.03353888,83679.0,83678.0,0.12308057]
[1743432994987,0.01117256,83679.0,83678.0,0.12308057]
[1743432995315,0.04687113,83684.0,83678.0,0.12308057]
[1743432995744,0.04687113,83684.0,83678.0,0.12478124]
[1743432995961,0.02236706,83683.0,83678.0,0.12308057]
[1743432996376,0.02236706,83683.0,83678.0,0.00047671]
[1743432996850,0.01118388,83682.0,83678.0,0.00047671]
[1743432997052,0.04687113,83681.0,83678.0,0.00047671]
[1743432997438,0.04687113,83681.0,83671.0,0.0003372]
[1743432997439,0.01195,83678.0,83671.0,0.0003372]
[1743432997797,0.28588513,83677.0,83671.0,0.00047675]
[1743432997943,0.239017,83676.0,83671.0,0.00047675]
[1743432998138,0.04687113,83677.0,83671.0,0.00047675]
[1743432998498,0.05805501,83677.0,83671.0,0.00047675]
[1743432998887,0.02236706,83676.0,83671.0,0.00047675]
[1743432999505,0.01118388,83675.0,83671.0,0.00047675]
[1743432999849,0.01118388,83675.0,83674.0,0.250973]
[1743433000003,6e-08,83676.0,83675.0,0.011951]
[1743433000163,0.04687113,83693.0,83684.0,0.250943]
[1743433000380,0.04687113,83693.0,83684.0,0.76159786]
[1743433000619,0.04687113,83693.0,83684.0,0.4]
[1743433000820,0.04687113,83693.0,83671.0,0.00047675]
[1743433001023,0.29393354,83690.0,83672.0,0.12260386]
[1743433001224,0.29393354,83682.0,83671.0,0.40047675]
[1743433001382,0.29393354,83682.0,83671.0,0.00047675]
[1743433001383,0.23901,83679.0,83671.0,0.00047675]
[1743433001577,0.01493783,83678.0,83662.0,0.0003364]
[1743433001790,0.29393354,83672.0,83662.0,0.00047598]
[1743433002054,0.04687113,83671.0,83662.0,0.00047598]
[1743433002517,0.04687113,83670.0,83662.0,0.00047598]
[1743433002903,0.01790155,83669.0,83662.0,0.00047598]
[1743433003570,0.04687113,83668.0,83662.0,0.00047598]
[1743433003803,0.0558495,83668.0,83662.0,0.00047598]
[1743433004022,0.04687113,83668.0,83667.0,0.250994]
[1743433004483,0.04687113,83668.0,83666.0,0.239044]
[1743433004656,0.04687113,83668.0,83663.0,0.12260386]
[1743433004863,0.04687113,83668.0,83662.0,0.00047598]
[1743433005942,0.04985921,83667.0,83662.0,0.00047598]
[1743433006139,0.04687113,83667.0,83662.0,0.00047598]
[1743433006339,0.04687113,83684.0,83683.0,0.250946]
[1743433006640,0.04687113,83684.0,83683.0,0.638997]
[1743433006857,0.04687113,83684.0,83683.0,0.238997]
[1743433007033,0.04687113,83684.0,83683.0,0.37354986]
[1743433007803,0.04687113,83684.0,83683.0,0.78809071]
[1743433009395,0.04687113,83684.0,83683.0,0.52260386]
[1743433009603,0.04687113,83684.0,83683.0,0.55720086]
[1743433009733,0.04687113,83684.0,83683.0,0.56914986]
[1743433010346,0.04687113,83684.0,83677.0,0.1956]
[1743433010565,0.04687113,83684.0,83679.0,0.239007]